Workbook

Sheet 地市名称
A1: 阳江市2022年第四季度人力资源市场供求分析汇总
A3: 项 目 | B3: 代码 | C3: 需求人数 | D3: 求职人数 | E3: 求人倍率
A4: 甲 | B4: 乙 | C4: 1 | D4: 2 | E4: 3
A5: 本期有效数 | B5: 1 | C5: =C11 -> 4557 | D5: =E71 -> 4974 | E5: =IFERROR(C5/D5,0) -> 0.92
A7: 续表一.
A8: 项 目 | B8: 代码 | C8: 按产业分组的需求人数
C9: 需求人数 | D9: 所占比重（%）
A10: 甲 | B10: 乙 | C10: 4 | D10: 5
A11: 合计 | B11: 2 | C11: =C12+C13+C14 -> 4557 | D11: =SUM(D12:D14) -> 100.00%
A12: 第一产业 | B12: 3 | C12: =C21-C22 -> 5 | D12: =IFERROR(C12/$C$11,0) -> 0.11%
A13: 第二产业 | B13: 4 | C13: =C23-C24+C25-C26+C27+C28 -> 2187 | D13: =IFERROR(C13/$C$11,0) -> 47.99%
A14: 第三产业 | B14: 5 | C14: =C22+C24+C26+C29+C30+C31+C32+C33+C34+C35+C36+C37+C38+C39+C40+C41+C42+C43 -> 2365 | D14: =IFERROR(C14/$C$11,0) -> 51.90%
A16: 续表二
A17: 项 目 | B17: 代码 | C17: 按行业分组的需求人数
C18: 需求人数 | D18: 所占比重（%）
A19: 甲 | B19: 乙 | C19: 6 | D19: 7
A20: 合计 | B20: 6 | C20: =SUM(C21:C43)-C22-C24-C26 -> 4557 | D20: =SUM(D21:D43)-D26-D24-D22 -> 100.00%
A21: 农、林、牧、渔业 | B21: 7 | C21: 5 | D21: =IFERROR(C21/$C$11,0) -> 0.11%
A22: 其中，农、林、牧、渔专业及辅助性活动 | B22: 8 | C22: 0 | D22: =IFERROR(C22/$C$11,0) -> 0.00%
A23: 采矿业 | B23: 9 | C23: 0 | D23: 0.00%
A24: 其中，开采专业及辅助性活动 | B24: 10 | C24: 0 | D24: 0.00%
A25: 制造业 | B25: 11 | C25: 2568 | D25: 56.35%
A26: 其中，金属制品、机械和设备修理业 | B26: 12 | C26: 498 | D26: 10.93%
A27: 电力、热力、燃气及水生产和供应业 | B27: 13 | C27: 79 | D27: 1.73%
A28: 建筑业 | B28: 14 | C28: 38 | D28: 0.83%
A29: 批发和零售业 | B29: 15 | C29: 68 | D29: 1.49%
A30: 交通运输、仓储和邮政业 | B30: 16 | C30: 43 | D30: 0.94%
A31: 住宿和餐饮业 | B31: 17 | C31: 1171 | D31: 25.70%
A32: 信息传输、软件和信息技术服务业 | B32: 18 | C32: 238 | D32: 5.22%
A33: 金融业 | B33: 19 | C33: 29 | D33: 0.64%
A34: 房地产业 | B34: 20 | C34: 148 | D34: 3.25%
A35: 租赁和商务服务业 | B35: 21 | C35: 32 | D35: 0.70%
A36: 科学研究和技术服务业 | B36: 22 | C36: 0 | D36: 0.00%
A37: 水利、环境和公共设施管理业 | B37: 23 | C37: 0 | D37: 0.00%
A38: 居民服务、修理和其他服务业 | B38: 24 | C38: 74 | D38: 1.62%
A39: 教育 | B39: 25 | C39: 37 | D39: 0.81%
A40: 卫生和社会工作 | B40: 26 | C40: 0 | D40: 0.00%
A41: 文化、体育和娱乐业 | B41: 27 | C41: 27 | D41: 0.59%
A42: 公共管理、社会保障和社会组织 | B42: 28 | C42: 0 | D42: 0.00%
A43: 国际组织 | B43: 29 | C43: 0 | D43: 0.00%
A45: 续表三
A46: 项 目 | B46: 代码 | C46: 按用人单位性质分组的需求人数
C47: 需求人数 | D47: 所占比重（%）
A48: 甲 | B48: 乙 | C48: 8 | D48: 9
A49: 合 计 | B49: 30 | C49: =C50+C63+C64+C65 -> 4557 | D49: =D50+D63+D64+D65 -> 100.00%
A50: 企 业 | B50: 31 | C50: =C51+C60+C61+C62 -> 4557 | D50: =IFERROR(C50/$C$11,0) -> 100.00%
A51: 内资企业 | B51: 32 | C51: =C52+C53+C54+C55+C56+C57+C58+C59 -> 3163 | D51: =IFERROR(C51/$C$11,0) -> 69.41%
A52: 国有企业 | B52: 33 | C52: 10 | D52: 0.22%
A53: 集体企业 | B53: 34 | C53: 0 | D53: 0.00%
A54: 股份合作企业 | B54: 35 | C54: 10 | D54: 0.22%
A55: 联营企业 | B55: 36 | C55: 5 | D55: 0.11%
A56: 有限责任公司 | B56: 37 | C56: 2058 | D56: 45.16%
A57: 股份有限公司 | B57: 38 | C57: 365 | D57: 8.01%
A58: 私营企业 | B58: 39 | C58: 699 | D58: 15.34%
A59: 其他企业 | B59: 40 | C59: 16 | D59: 0.35%
A60: 港、澳、台商投资企业 | B60: 41 | C60: 59 | D60: 1.29%
A61: 外商投资企业 | B61: 42 | C61: 16 | D61: 0.35%
A62: 个体经营 | B62: 43 | C62: 1319 | D62: 28.94%
A63: 事 业 | B63: 44 | C63: 0 | D63: 0.00%
A64: 机 关 | B64: 45 | C64: 0 | D64: 0.00%
A65: 其 他 | B65: 46 | C65: 0 | D65: 0.00%
A67: 续表四
A68: 项 目 | B68: 代码 | C68: 按职业分组的供求人数（职业大类）
C69: 需求人数 | D69: 所占比重（%） | E69: 求职人数 | F69: 所占比重（%） | G69: 求人倍率
A70: 甲 | B70: 乙 | C70: 10 | D70: 11 | E70: 12 | F70: 13 | G70: 14
A71: 合计 | B71: 47 | C71: =SUM(C72:C78) -> 4557 | D71: =SUM(D72:D78) -> 100.00% | E71: =SUM(E72:E79) -> 4974 | F71: =SUM(F72:F79) -> 100.00% | G71: =IFERROR(C71/E71,0) -> 0.92
A72: 单位负责人 | B72: 48 | C72: 95 | D72: =IFERROR(C72/$C$11,0) -> 2.08% | E72: 14 | F72: =IFERROR(E72/$E$71,0) -> 0.28% | G72: =IFERROR(C72/(E72+$E$79*F72),0) -> 6.79
A73: 专业技术人员 | B73: 49 | C73: 402 | D73: =IFERROR(C73/$C$11,0) -> 8.82% | E73: 508 | F73: =IFERROR(E73/$E$71,0) -> 10.21% | G73: =IFERROR(C73/(E73+$E$79*F73),0) -> 0.79
A74: 办事人员和有关人员 | B74: 50 | C74: 1116 | D74: 24.49% | E74: 1545 | F74: 31.06% | G74: 0.72
A75: 社会生产服务和生活服务人员 | B75: 51 | C75: 1045 | D75: 22.93% | E75: 1154 | F75: 23.20% | G75: 0.91
A76: 农林牧渔业生产及辅助人员 | B76: 52 | C76: 1 | D76: 0.02% | E76: 2 | F76: 0.04% | G76: 0.50
A77: 生产制造及有关人员 | B77: 53 | C77: 1008 | D77: 22.12% | E77: 1003 | F77: 20.16% | G77: 1.00
A78: 其他 | B78: 54 | C78: 890 | D78: 19.53% | E78: 748 | F78: 15.04% | G78: 1.19
A79: 无要求 | B79: 55 | C79: - | D79: - | F79: 0.00% | G79: -
A81: 续表五
A82: 项 目 | B82: 代码 | C82: 职业代码 | D82: 需求大于求职缺口最大的前二十个职业（职业细类）
D83: 需求人数 | E83: 求职人数 | F83: 缺口数 | G83: 求人倍率
A84: 甲 | B84: 乙 | C84: 15 | D84: 16 | E84: 17 | F84: 18 | G84: 19
A85: 普工 | B85: 56 | C85: 6279800 | D85: 1264 | E85: 632 | F85: =D85-E85 -> 632 | G85: =IFERROR(D85/E85,0) -> 2.00
A86: 业务员 | B86: 57 | C86: 4010299 | D86: 275 | E86: 137 | F86: =D86-E86 -> 138 | G86: =IFERROR(D86/E86,0) -> 2.01
A87: 营业员 | B87: 58 | C87: 4010100 | D87: 31 | E87: 1513 | F87: -1482 | G87: 0.02
A88: 质检员 | B88: 59 | C88: 6262100 | D88: 26 | E88: 21 | F88: 5 | G88: 1.24
A89: 仓管员 | B89: 60 | C89: 4020199 | D89: 21 | E89: 17 | F89: 4 | G89: 1.24
B90: 61 | F90: 0 | G90: 0.00
B91: 62 | F91: 0 | G91: 0.00
B92: 63 | F92: 0 | G92: 0.00
B93: 64 | F93: =D93-E93 -> 0 | G93: =IFERROR(D93/E93,0) -> 0.00
B94: 65 | F94: 0 | G94: 0.00
B95: 66 | F95: 0 | G95: 0.00
B96: 67 | F96: 0 | G96: 0.00
B97: 68 | F97: 0 | G97: 0.00
B98: 69 | F98: 0 | G98: 0.00
B99: 70 | F99: 0 | G99: 0.00
B100: 71 | F100: 0 | G100: 0.00
B101: 72 | F101: 0 | G101: 0.00
B102: 73 | F102: 0 | G102: 0.00
B103: 74 | F103: 0 | G103: 0.00
B104: 75 | F104: 0 | G104: 0.00
A106: 续表六
A107: 项 目 | B107: 代码 | C107: 职业代码 | D107: 需求小于求职缺口最大的前二十个职业（职业细类）
D108: 需求人数 | E108: 求职人数 | F108: 缺口数 | G108: 求人倍率
A109: 甲 | B109: 乙 | C109: 20 | D109: 21 | E109: 22 | F109: 23 | G109: 24
A110: 文 员 | B110: 76 | C110: 3010200 | D110: 159 | E110: 318 | F110: =D110-E110 -> -159 | G110: =IFERROR(D110/E110,0) -> 0.50
A111: 会计 | B111: 77 | C111: 2060300 | D111: 201 | E111: 402 | F111: =D111-E111 -> -201 | G111: =IFERROR(D111/E111,0) -> 0.50
A112: 驾驶员 | B112: 78 | C112: 6240100 | D112: 47 | E112: 94 | F112: -47 | G112: 0.50
A113: 跟单员 | B113: 79 | C113: 3010199 | D113: 42 | E113: 55 | F113: -13 | G113: 0.76
A114: 电工 | B114: 80 | C114: 6240100 | D114: 37 | E114: 46 | F114: -9 | G114: 0.80
B115: 81 | F115: 0 | G115: 0.00
B116: 82 | F116: 0 | G116: 0.00
B117: 83 | F117: 0 | G117: 0.00
B118: 84 | F118: 0 | G118: 0.00
B119: 85 | F119: =D119-E119 -> 0 | G119: =IFERROR(D119/E119,0) -> 0.00
B120: 86 | F120: 0 | G120: 0.00
B121: 87 | F121: 0 | G121: 0.00
B122: 88 | F122: 0 | G122: 0.00
B123: 89 | F123: 0 | G123: 0.00
B124: 90 | F124: 0 | G124: 0.00
B125: 91 | F125: 0 | G125: 0.00
B126: 92 | F126: 0 | G126: 0.00
B127: 93 | F127: 0 | G127: 0.00
B128: 94 | F128: 0 | G128: 0.00
B129: 95 | F129: 0 | G129: 0.00
A131: 续表七
A132: 项 目 | B132: 代码 | C132: 按求职人员类别分组的求职人数
C133: 求职人数 | D133: 所占比重（%）
A134: 甲 | B134: 乙 | C134: 25 | D134: 26
A135: 合计 | B135: 96 | C135: =SUM(C136:C143)-C137 -> 4974 | D135: =SUM(D136:D143)-D137 -> 100.00%
A136: 新成长失业青年 | B136: 97 | C136: 987 | D136: =IFERROR(C136/$C$135,0) -> 19.84%
A137: 其中：应届高校毕业生 | B137: 98 | C137: 151 | D137: 3.04%
A138: 失业人员 | B138: 99 | C138: 266 | D138: 5.35%
A139: 在业人员 | B139: 100 | C139: 625 | D139: 12.57%
A140: 退休人员 | B140: 101 | C140: 637 | D140: 12.81%
A141: 在学人员 | B141: 102 | C141: 745 | D141: 14.98%
A142: 本市农村求职人员 | B142: 103 | C142: 1673 | D142: 33.63%
A143: 外地户籍求职人员 | B143: 104 | C143: 41 | D143: 0.82%
A147: 续表八
A148: 项 目 | B148: 代码 | C148: 劳动力供求人数比较（按性别分组）
C149: 需求人数 | D149: 所占比重（%） | E149: 求职人数 | F149: 所占比重（%） | G149: 求人倍率
A150: 甲 | B150: 乙 | C150: 27 | D150: 28 | E150: 29 | F150: 30 | G150: 31
A151: 合计 | B151: 105 | C151: -- | D151: -- | E151: =SUM(E152:E153) -> 4974 | F151: =SUM(F152:F153) -> 100.00% | G151: --
A152: 男 | B152: 106 | C152: -- | D152: -- | E152: 2978 | F152: =IFERROR(E152/$E$151,0) -> 59.87% | G152: --
A153: 女 | B153: 107 | C153: -- | D153: -- | E153: 1996 | F153: =IFERROR(E153/$E$151,0) -> 40.13% | G153: --
A154: 无要求 | B154: 108 | C154: -- | D154: -- | E154: -- | F154: -- | G154: --
A156: 续表九
A157: 项 目 | B157: 代码 | C157: 劳动力供求人数比较（按年龄分组）
C158: 需求人数 | D158: 需求比重（%） | E158: 求职人数 | F158: 求职比重（%） | G158: 求人倍率
A159: 甲 | B159: 乙 | C159: 32 | D159: 33 | E159: 34 | F159: 35 | G159: 36
A160: 合计 | B160: 109 | C160: =SUM(C161:C165) -> 4557 | D160: =SUM(D161:D165) -> 100.00% | E160: =SUM(E161:E164) -> 4974 | F160: =SUM(F161:F164) -> 100.00% | G160: =IF(E160=0,0,C160/E160) -> 0.92
A161: 16-24岁 | B161: 110 | C161: 1404 | D161: =IFERROR(C161/$C$184,0) -> 30.81% | E161: 1787 | F161: =IFERROR(E161/$E$160,0) -> 35.93% | G161: =IFERROR((C161+$C$165*F161)/E161,0) -> 0.93
A162: 25-34岁 | B162: 111 | C162: 1224 | D162: =IFERROR(C162/$C$184,0) -> 26.86% | E162: 1495 | F162: =IFERROR(E162/$E$160,0) -> 30.06% | G162: =IFERROR((C162+$C$165*F162)/E162,0) -> 0.97
A163: 35-44岁 | B163: 112 | C163: 731 | D163: =IFERROR(C163/$C$184,0) -> 16.04% | E163: 962 | F163: =IFERROR(E163/$E$160,0) -> 19.34% | G163: =IFERROR((C163+$C$165*F163)/E163,0) -> 0.91
A164: 45岁以上 | B164: 113 | C164: 461 | D164: =IFERROR(C164/$C$184,0) -> 10.12% | E164: 730 | F164: =IFERROR(E164/$E$160,0) -> 14.68% | G164: =IFERROR((C164+$C$165*F164)/E164,0) -> 0.78
A165: 无要求 | B165: 114 | C165: 737 | D165: =IFERROR(C165/$C$184,0) -> 16.17% | E165: -- | F165: -- | G165: --
A167: 续表十
A168: 项 目 | B168: 代码 | C168: 劳动力供求人数比较（按文化程度分组）
C169: 需求人数 | D169: 需求比重（%） | E169: 求职人数 | F169: 求职比重（%） | G169: 求人倍率
A170: 甲 | B170: 乙 | C170: 37 | D170: 38 | E170: 39 | F170: 40 | G170: 41
A171: 合计 | B171: 115 | C171: =SUM(C172:C178)-C174 -> 4557 | D171: =SUM(D172:D178)-D174 -> 100.00% | E171: =SUM(E172:E177)-E174 -> 4974 | F171: =SUM(F172:F177)-F174 -> 100.00% | G171: =IF(E171=0,0,C171/E171) -> 0.92
A172: 初中及以下 | B172: 116 | C172: 964 | D172: =IFERROR(C172/$C$184,0) -> 21.15% | E172: 1336 | F172: =IFERROR(E172/$E$171,0) -> 26.86% | G172: =IFERROR((C172+$C$178*F172)/E172,0) -> 0.82
A173: 高中 | B173: 117 | C173: 1494 | D173: 32.78% | E173: 1690 | F173: 33.98% | G173: 0.98
A174: 其中：职高、技校、中专 | B174: 118 | C174: 987 | D174: 21.66% | E174: 983 | F174: 19.76% | G174: 1.10
A175: 大专 | B175: 119 | C175: 1293 | D175: 28.37% | E175: 1630 | F175: 32.77% | G175: 0.89
A176: 大学 | B176: 120 | C176: 302 | D176: 6.63% | E176: 313 | F176: 6.29% | G176: 1.06
A177: 硕士以上 | B177: 121 | C177: 22 | D177: 0.48% | E177: 5 | F177: 0.10% | G177: 4.50
A178: 无要求 | B178: 122 | C178: 482 | D178: 10.58% | E178: -- | F178: -- | G178: --
A180: 续表十一
A181: 项 目 | B181: 代码 | C181: 劳动力供求人数比较（按技术等级分组）
C182: 需求人数 | D182: 需求比重（%） | E182: 求职人数 | F182: 求职比重（%） | G182: 求人倍率
A183: 甲 | B183: 乙 | C183: 42 | D183: 43 | E183: 44 | F183: 45 | G183: 46
A184: 合计 | B184: 123 | C184: =SUM(C185:C194) -> 4557 | D184: =SUM(D185:D194) -> 100.00% | E184: =SUM(E185:E193) -> 4974 | F184: =SUM(F185:F193) -> 100.00% | G184: =IF(E184=0,0,C184/E184) -> 0.92
A185: 职业资格五级(初级技能) | B185: 124 | C185: 318 | D185: =IFERROR(C185/$C$184,0) -> 6.98% | E185: 313 | F185: =IFERROR(E185/$E$171,0) -> 6.29% | G185: =IFERROR((C185+$C$194*F185)/E185,0) -> 1.76
A186: 职业资格四级(中级技能) | B186: 125 | C186: 181 | D186: =IFERROR(C186/$C$184,0) -> 3.97% | E186: 145 | F186: =IFERROR(E186/$E$171,0) -> 2.92% | G186: =IFERROR((C186+$C$194*F186)/E186,0) -> 2.00
A187: 职业资格三级(高级技能) | B187: 126 | C187: 4 | D187: =IFERROR(C187/$C$184,0) -> 0.09% | E187: 3 | F187: 0.06% | G187: 2.08
A188: 职业资格二级(技师) | B188: 127 | C188: 2 | D188: =IFERROR(C188/$C$184,0) -> 0.04% | E188: 1 | F188: 0.02% | G188: 2.75
A189: 职业资格一级(高级技师) | B189: 128 | C189: 3 | D189: =IFERROR(C189/$C$184,0) -> 0.07% | E189: 2 | F189: 0.04% | G189: 2.25
A190: 初级职称 | B190: 129 | C190: 321 | D190: 7.04% | E190: 316 | F190: 6.35% | G190: 1.76
A191: 中级职称 | B191: 130 | C191: 8 | D191: 0.18% | E191: 8 | F191: 0.16% | G191: 1.75
A192: 高级职称 | B192: 131 | C192: 2 | D192: 0.04% | E192: 1 | F192: 0.02% | G192: 2.75
A193: 无技术等级或职称 | B193: 132 | C193: —— | D193: -- | E193: 4185 | F193: 84.14% | G193: --
A194: 无要求 | B194: 133 | C194: 3718 | D194: =IFERROR(C194/$C$184,0) -> 81.59% | E194: -- | F194: -- | G194: --

Sheet 汇总表
A1: 供求总体人数 | D1: 按产业分组的需求人数 | G1: 按行业分组的需求人数 | AD1: 按用人单位性质分组的需求人数 | AT1: 按职业分组的供求人数 | BH1: 表6 需求大于求职缺口最大的前二十个职业（职业细类） | DQ1: 表7 需求小于求职缺口最大的前二十个职业（职业细类） | FX1: 表8 按求职人员类别分组的求职人数 | GF1: 表9 按性别分组的供求人数 | GK1: 表10 按年龄分组的供求人数 | GT1: 表11 按文化程度分组的供求人数 | HG1: 表12 按技术等级分组的供求人数
A2: 1 | B2: 2 | C2: 3 | D2: 4 | E2: 5 | F2: 6 | G2: 7 | H2: 8 | I2: 9 | J2: 10 | K2: 11 | L2: 12 | M2: 13 | N2: 14 | O2: 15 | P2: 16 | Q2: 17 | R2: 18 | S2: 19 | T2: 20 | U2: 21 | V2: 22 | W2: 23 | X2: 24 | Y2: 25 | Z2: 26 | AA2: 27 | AB2: 28 | AC2: 29 | AD2: 30 | AE2: 31 | AF2: 32 | AG2: 33 | AH2: 34 | AI2: 35 | AJ2: 36 | AK2: 37 | AL2: 38 | AM2: 39 | AN2: 40 | AO2: 41 | AP2: 42 | AQ2: 43 | AR2: 44 | AS2: 45 | AT2: 46 | AU2: 47 | AV2: 48 | AW2: 49 | AX2: 50 | AY2: 51 | AZ2: 52 | BA2: 53 | BB2: 54 | BC2: 55 | BD2: 56 | BE2: 57 | BF2: 58 | BG2: 59 | BH2: 60 | BI2: 61 | BJ2: 62 | BK2: 63 | BL2: 64 | BM2: 65 | BN2: 66 | BO2: 67 | BP2: 68 | BQ2: 69 | BR2: 70 | BS2: 71 | BT2: 72 | BU2: 73 | BV2: 74 | BW2: 75 | BX2: 76 | BY2: 77 | BZ2: 78 | CA2: 79 | CB2: 80 | CC2: 81 | CD2: 82 | CE2: 83 | CF2: 84 | CG2: 85 | CH2: 86 | CI2: 87 | CJ2: 88 | CK2: 89 | CL2: 90 | CM2: 91 | CN2: 92 | CO2: 93 | CP2: 94 | CQ2: 95 | CR2: 96 | CS2: 97 | CT2: 98 | CU2: 99 | CV2: 100 | CW2: 101 | CX2: 102 | CY2: 103 | CZ2: 104 | DA2: 105 | DB2: 106 | DC2: 107 | DD2: 108 | DE2: 109 | DF2: 110 | DG2: 111 | DH2: 112 | DI2: 113 | DJ2: 114 | DK2: 115 | DL2: 116 | DM2: 117 | DN2: 118 | DO2: 119 | DP2: 120 | DQ2: 121 | DR2: 122 | DS2: 123 | DT2: 124 | DU2: 125 | DV2: 126 | DW2: 127 | DX2: 128 | DY2: 129 | DZ2: 130 | EA2: 131 | EB2: 132 | EC2: 133 | ED2: 134 | EE2: 135 | EF2: 136 | EG2: 137 | EH2: 138 | EI2: 139 | EJ2: 140 | EK2: 141 | EL2: 142 | EM2: 143 | EN2: 144 | EO2: 145 | EP2: 146 | EQ2: 147 | ER2: 148 | ES2: 149 | ET2: 150 | EU2: 151 | EV2: 152 | EW2: 153 | EX2: 154 | EY2: 155 | EZ2: 156 | FA2: 157 | FB2: 158 | FC2: 159 | FD2: 160 | FE2: 161 | FF2: 162 | FG2: 163 | FH2: 164 | FI2: 165 | FJ2: 166 | FK2: 167 | FL2: 168 | FM2: 169 | FN2: 170 | FO2: 171 | FP2: 172 | FQ2: 173 | FR2: 174 | FS2: 175 | FT2: 176 | FU2: 177 | FV2: 178 | FW2: 179 | FX2: 180 | FY2: 181 | FZ2: 182 | GA2: 183 | GB2: 184 | GC2: 185 | GD2: 186 | GE2: 187 | GF2: 188 | GG2: 189 | GH2: 190 | GI2: 191 | GJ2: 192 | GK2: 193 | GL2: 194 | GM2: 195 | GN2: 196 | GO2: 197 | GP2: 198 | GQ2: 199 | GR2: 200 | GS2: 201 | GT2: 202 | GU2: 203 | GV2: 204 | GW2: 205 | GX2: 206 | GY2: 207 | GZ2: 208 | HA2: 209 | HB2: 210 | HC2: 211 | HD2: 212 | HE2: 213 | HF2: 214 | HG2: 215 | HH2: 216 | HI2: 217 | HJ2: 218 | HK2: 219 | HL2: 220 | HM2: 221 | HN2: 222 | HO2: 223 | HP2: 224 | HQ2: 225 | HR2: 226 | HS2: 227 | HT2: 228 | HU2: 229 | HV2: 230 | HW2: 231 | HX2: 232
A3: =地市名称!C3 -> 需求人数 | B3: =地市名称!D3 -> 求职人数 | C3: =地市名称!E3 -> 求人倍率 | D3: =地市名称!A12 -> 第一产业 | E3: =地市名称!A13 -> 第二产业 | F3: =地市名称!A14 -> 第三产业 | G3: =地市名称!A21 -> 农、林、牧、渔业 | H3: 其中，农、林、牧、渔专业及辅助性活动 | I3: =地市名称!A23 -> 采矿业 | J3: 其中，开采专业及辅助性活动 | K3: =地市名称!A25 -> 制造业 | L3: 其中，金属制品、机械和设备修理业 | M3: =地市名称!A27 -> 电力、热力、燃气及水生产和供应业 | N3: =地市名称!A28 -> 建筑业 | O3: =地市名称!A29 -> 批发和零售业 | P3: =地市名称!A30 -> 交通运输、仓储和邮政业 | Q3: =地市名称!A31 -> 住宿和餐饮业 | R3: =地市名称!A32 -> 信息传输、软件和信息技术服务业 | S3: =地市名称!A33 -> 金融业 | T3: =地市名称!A34 -> 房地产业 | U3: =地市名称!A35 -> 租赁和商务服务业 | V3: =地市名称!A36 -> 科学研究和技术服务业 | W3: =地市名称!A37 -> 水利、环境和公共设施管理业 | X3: =地市名称!A38 -> 居民服务、修理和其他服务业 | Y3: =地市名称!A39 -> 教育 | Z3: =地市名称!A40 -> 卫生和社会工作 | AA3: =地市名称!A41 -> 文化、体育和娱乐业 | AB3: =地市名称!A42 -> 公共管理、社会保障和社会组织 | AC3: =地市名称!A43 -> 国际组织 | AD3: =地市名称!A50 -> 企 业 | AE3: =地市名称!A51 -> 内资企业 | AF3: =地市名称!A52 -> 国有企业 | AG3: =地市名称!A53 -> 集体企业 | AH3: =地市名称!A54 -> 股份合作企业 | AI3: =地市名称!A55 -> 联营企业 | AJ3: =地市名称!A56 -> 有限责任公司 | AK3: =地市名称!A57 -> 股份有限公司 | AL3: =地市名称!A58 -> 私营企业 | AM3: =地市名称!A59 -> 其他企业 | AN3: =地市名称!A60 -> 港、澳、台商投资企业 | AO3: =地市名称!A61 -> 外商投资企业 | AP3: =地市名称!A62 -> 个体经营 | AQ3: =地市名称!A63 -> 事 业 | AR3: =地市名称!A64 -> 机 关 | AS3: =地市名称!A65 -> 其 他 | AT3: 单位负责人需求人数 | AU3: 单位负责人求职人数 | AV3: 专业技术人员需求人数 | AW3: 专业技术人员求职人数 | AX3: 办事人员和有关人员需求人数 | AY3: 办事人员和有关人员求职人数 | AZ3: 社会生产服务和生活服务人员需求人数 | BA3: 社会生产服务和生活服务人员求职人数 | BB3: 农林牧渔业生产及辅助人员需求人数 | BC3: 农林牧渔业生产及辅助人员求职人数 | BD3: 生产制造及有关人员需求人数 | BE3: 生产制造及有关人员求职人数 | BF3: 其他需求人数 | BG3: 其他求职人数 | BH3: 工种名称1 | BI3: 工种1需求人数 | BJ3: 工种1求职人数 | BK3: 工种名称2 | BL3: 工种2需求人数 | BM3: 工种2求职人数 | BN3: 工种名称3 | BO3: 工种3需求人数 | BP3: 工种3求职人数 | BQ3: 工种名称4 | BR3: 工种4需求人数 | BS3: 工种4求职人数 | BT3: 工种名称5 | BU3: 工种5需求人数 | BV3: 工种5求职人数 | BW3: 工种名称6 | BX3: 工种6需求人数 | BY3: 工种6求职人数 | BZ3: 工种名称7 | CA3: 工种7需求人数 | CB3: 工种7求职人数 | CC3: 工种名称8 | CD3: 工种8需求人数 | CE3: 工种8求职人数 | CF3: 工种名称9 | CG3: 工种9需求人数 | CH3: 工种9求职人数 | CI3: 工种名称10 | CJ3: 工种10需求人数 | CK3: 工种10求职人数 | CL3: 工种名称11 | CM3: 工种11需求人数 | CN3: 工种11求职人数 | CO3: 工种名称12 | CP3: 工种12需求人数 | CQ3: 工种12求职人数 | CR3: 工种名称13 | CS3: 工种13需求人数 | CT3: 工种13求职人数 | CU3: 工种名称14 | CV3: 工种14需求人数 | CW3: 工种14求职人数 | CX3: 工种名称15 | CY3: 工种15需求人数 | CZ3: 工种15求职人数 | DA3: 工种名称16 | DB3: 工种16需求人数 | DC3: 工种16求职人数 | DD3: 工种名称17 | DE3: 工种17需求人数 | DF3: 工种17求职人数 | DG3: 工种名称18 | DH3: 工种18需求人数 | DI3: 工种18求职人数 | DJ3: 工种名称19 | DK3: 工种19需求人数 | DL3: 工种19求职人数 | DM3: 工种名称20 | DN3: 工种20需求人数 | DO3: 工种20求职人数 | DP3: 工种名称1 | DQ3: 工种1需求人数 | DR3: 工种1求职人数 | DS3: 工种名称2 | DT3: 工种2需求人数 | DU3: 工种2求职人数 | DV3: 工种名称3 | DW3: 工种3需求人数 | DX3: 工种3求职人数 | DY3: 工种名称4 | DZ3: 工种4需求人数 | EA3: 工种4求职人数 | EB3: 工种名称5 | EC3: 工种5需求人数 | ED3: 工种5求职人数 | EE3: 工种名称6 | EF3: 工种6需求人数 | EG3: 工种6求职人数 | EH3: 工种名称7 | EI3: 工种7需求人数 | EJ3: 工种7求职人数 | EK3: 工种名称8 | EL3: 工种8需求人数 | EM3: 工种8求职人数 | EN3: 工种名称9 | EO3: 工种9需求人数 | EP3: 工种9求职人数 | EQ3: 工种名称10 | ER3: 工种10需求人数 | ES3: 工种10求职人数 | ET3: 工种名称11 | EU3: 工种11需求人数 | EV3: 工种11求职人数 | EW3: 工种名称12 | EX3: 工种12需求人数 | EY3: 工种12求职人数 | EZ3: 工种名称13 | FA3: 工种13需求人数 | FB3: 工种13求职人数 | FC3: 工种名称14 | FD3: 工种14需求人数 | FE3: 工种14求职人数 | FF3: 工种名称15 | FG3: 工种15需求人数 | FH3: 工种15求职人数 | FI3: 工种名称16 | FJ3: 工种16需求人数 | FK3: 工种16求职人数 | FL3: 工种名称17 | FM3: 工种17需求人数 | FN3: 工种17求职人数 | FO3: 工种名称18 | FP3: 工种18需求人数 | FQ3: 工种18求职人数 | FR3: 工种名称19 | FS3: 工种19需求人数 | FT3: 工种19求职人数 | FU3: 工种名称20 | FV3: 工种20需求人数 | FW3: 工种20求职人数 | FX3: =地市名称!A136 -> 新成长失业青年 | FY3: =地市名称!A137 -> 其中：应届高校毕业生 | FZ3: =地市名称!A138 -> 失业人员 | GA3: =地市名称!A139 -> 在业人员 | GB3: =地市名称!A140 -> 退休人员 | GC3: =地市名称!A141 -> 在学人员 | GD3: =地市名称!A142 -> 本市农村求职人员 | GE3: =地市名称!A143 -> 外地户籍求职人员 | GF3: 性别男需求人数 | GG3: 性别男求职人数 | GH3: 性别女需求人数 | GI3: 性别女求职人数 | GJ3: 性别无要求需求人数 | GK3: 年龄16-24岁需求人数 | GL3: 年龄16-24岁求职人数 | GM3: 年龄25-34岁需求人数 | GN3: 年龄25-34岁求职人数 | GO3: 年龄35-44岁需求人数 | GP3: 年龄35-44岁求职人数 | GQ3: 年龄45岁以上需求人数 | GR3: 年龄45岁以上求职人数 | GS3: 年龄无要求需求人数 | GT3: 初中及以下需求人数 | GU3: 初中及以下求职人数 | GV3: 高中需求人数 | GW3: 高中求职人数 | GX3: 其中：职高、技校、中专需求人数 | GY3: 其中：职高、技校、中专求职人数 | GZ3: 大专需求人数 | HA3: 大专求职人数 | HB3: 大学需求人数 | HC3: 大学求职人数 | HD3: 硕士以上需求人数 | HE3: 硕士以上求职人数 | HF3: 无要求需求人数 | HG3: 职业资格五级(初级技能)需求人数 | HH3: 职业资格五级(初级技能)求职人数 | HI3: 职业资格四级(中级技能)需求人数 | HJ3: 职业资格四级(中级技能)求职人数 | HK3: 职业资格三级(高级技能)需求人数 | HL3: 职业资格三级(高级技能)求职人数 | HM3: 职业资格二级(技师)需求人数 | HN3: 职业资格二级(技师)求职人数 | HO3: 职业资格一级(高级技师)需求人数 | HP3: 职业资格一级(高级技师)求职人数 | HQ3: 初级专业技术职务需求人数 | HR3: 初级专业技术职务求职人数 | HS3: 中级专业技术职务需求人数 | HT3: 中级专业技术职务求职人数 | HU3: 高级专业技术职务需求人数 | HV3: 高级专业技术职务求职人数 | HW3: 无技术等级或职称求职人数 | HX3: 技术等级无要求需求人数
A4: =地市名称!C5 -> 4557 | B4: =地市名称!D5 -> 4974 | C4: =A4/B4 -> 0.92 | D4: =地市名称!C12 -> 5 | E4: =地市名称!C13 -> 2187 | F4: =地市名称!C14 -> 2365 | G4: =地市名称!C21 -> 5 | H4: =地市名称!C22 -> 0 | I4: =地市名称!C23 -> 0 | J4: =地市名称!C24 -> 0 | K4: =地市名称!C25 -> 2568 | L4: =地市名称!C26 -> 498 | M4: =地市名称!C27 -> 79 | N4: =地市名称!C28 -> 38 | O4: =地市名称!C29 -> 68 | P4: =地市名称!C30 -> 43 | Q4: =地市名称!C31 -> 1171 | R4: =地市名称!C32 -> 238 | S4: =地市名称!C33 -> 29 | T4: =地市名称!C34 -> 148 | U4: =地市名称!C35 -> 32 | V4: =地市名称!C36 -> 0 | W4: =地市名称!C37 -> 0 | X4: =地市名称!C38 -> 74 | Y4: =地市名称!C39 -> 37 | Z4: =地市名称!C40 -> 0 | AA4: =地市名称!C41 -> 27 | AB4: =地市名称!C42 -> 0 | AC4: =地市名称!C43 -> 0 | AD4: =地市名称!C50 -> 4557 | AE4: =地市名称!C51 -> 3163 | AF4: =地市名称!C52 -> 10 | AG4: =地市名称!C53 -> 0 | AH4: =地市名称!C54 -> 10 | AI4: =地市名称!C55 -> 5 | AJ4: =地市名称!C56 -> 2058 | AK4: =地市名称!C57 -> 365 | AL4: =地市名称!C58 -> 699 | AM4: =地市名称!C59 -> 16 | AN4: =地市名称!C60 -> 59 | AO4: =地市名称!C61 -> 16 | AP4: =地市名称!C62 -> 1319 | AQ4: =地市名称!C63 -> 0 | AR4: =地市名称!C64 -> 0 | AS4: =地市名称!C65 -> 0 | AT4: =地市名称!C72 -> 95 | AU4: =地市名称!E72 -> 14 | AV4: =地市名称!C73 -> 402 | AW4: =地市名称!E73 -> 508 | AX4: =地市名称!C74 -> 1116 | AY4: =地市名称!E74 -> 1545 | AZ4: =地市名称!C75 -> 1045 | BA4: =地市名称!E75 -> 1154 | BB4: =地市名称!C76 -> 1 | BC4: =地市名称!E76 -> 2 | BD4: =地市名称!C77 -> 1008 | BE4: =地市名称!E77 -> 1003 | BF4: =地市名称!C78 -> 890 | BG4: =地市名称!E78 -> 748 | BH4: =地市名称!A85 -> 普工 | BI4: =地市名称!D85 -> 1264 | BJ4: =地市名称!E85 -> 632 | BK4: =地市名称!A86 -> 业务员 | BL4: =地市名称!D86 -> 275 | BM4: =地市名称!E86 -> 137 | BN4: =地市名称!A87 -> 营业员 | BO4: =地市名称!D87 -> 31 | BP4: =地市名称!E87 -> 1513 | BQ4: =地市名称!A88 -> 质检员 | BR4: =地市名称!D88 -> 26 | BS4: =地市名称!E88 -> 21 | BT4: =地市名称!A89 -> 仓管员 | BU4: =地市名称!D89 -> 21 | BV4: =地市名称!E89 -> 17 | BW4: =地市名称!A90 -> 0 | BX4: =地市名称!D90 -> 0 | BY4: =地市名称!E90 -> 0 | BZ4: =地市名称!A91 -> 0 | CA4: =地市名称!D91 -> 0 | CB4: =地市名称!E91 -> 0 | CC4: =地市名称!A92 -> 0 | CD4: =地市名称!D92 -> 0 | CE4: =地市名称!E92 -> 0 | CF4: =地市名称!A93 -> 0 | CG4: =地市名称!D93 -> 0 | CH4: =地市名称!E93 -> 0 | CI4: =地市名称!A94 -> 0 | CJ4: =地市名称!D94 -> 0 | CK4: =地市名称!E94 -> 0 | CL4: =地市名称!A95 -> 0 | CM4: =地市名称!D95 -> 0 | CN4: =地市名称!E95 -> 0 | CO4: =地市名称!A96 -> 0 | CP4: =地市名称!D96 -> 0 | CQ4: =地市名称!E96 -> 0 | CR4: =地市名称!A97 -> 0 | CS4: =地市名称!D97 -> 0 | CT4: =地市名称!E97 -> 0 | CU4: =地市名称!A98 -> 0 | CV4: =地市名称!D98 -> 0 | CW4: =地市名称!E98 -> 0 | CX4: =地市名称!A99 -> 0 | CY4: =地市名称!D99 -> 0 | CZ4: =地市名称!E99 -> 0 | DA4: =地市名称!A100 -> 0 | DB4: =地市名称!D100 -> 0 | DC4: =地市名称!E100 -> 0 | DD4: =地市名称!A101 -> 0 | DE4: =地市名称!D101 -> 0 | DF4: =地市名称!E101 -> 0 | DG4: =地市名称!A102 -> 0 | DH4: =地市名称!D102 -> 0 | DI4: =地市名称!E102 -> 0 | DJ4: =地市名称!A103 -> 0 | DK4: =地市名称!D103 -> 0 | DL4: =地市名称!E103 -> 0 | DM4: =地市名称!A104 -> 0 | DN4: =地市名称!D104 -> 0 | DO4: =地市名称!E104 -> 0 | DP4: =地市名称!A110 -> 文 员 | DQ4: =地市名称!D110 -> 159 | DR4: =地市名称!E110 -> 318 | DS4: =地市名称!A111 -> 会计 | DT4: =地市名称!D111 -> 201 | DU4: =地市名称!E111 -> 402 | DV4: =地市名称!A112 -> 驾驶员 | DW4: =地市名称!D112 -> 47 | DX4: =地市名称!E112 -> 94 | DY4: =地市名称!A113 -> 跟单员 | DZ4: =地市名称!D113 -> 42 | EA4: =地市名称!E113 -> 55 | EB4: =地市名称!A114 -> 电工 | EC4: =地市名称!D114 -> 37 | ED4: =地市名称!E114 -> 46 | EE4: =地市名称!A115 -> 0 | EF4: =地市名称!D115 -> 0 | EG4: =地市名称!E115 -> 0 | EH4: =地市名称!A116 -> 0 | EI4: =地市名称!D116 -> 0 | EJ4: =地市名称!E116 -> 0 | EK4: =地市名称!A117 -> 0 | EL4: =地市名称!D117 -> 0 | EM4: =地市名称!E117 -> 0 | EN4: =地市名称!A118 -> 0 | EO4: =地市名称!D118 -> 0 | EP4: =地市名称!E118 -> 0 | EQ4: =地市名称!A119 -> 0 | ER4: =地市名称!D119 -> 0 | ES4: =地市名称!E119 -> 0 | ET4: =地市名称!A120 -> 0 | EU4: =地市名称!D120 -> 0 | EV4: =地市名称!E120 -> 0 | EW4: =地市名称!A121 -> 0 | EX4: =地市名称!D121 -> 0 | EY4: =地市名称!E121 -> 0 | EZ4: =地市名称!A122 -> 0 | FA4: =地市名称!D122 -> 0 | FB4: =地市名称!E122 -> 0 | FC4: =地市名称!A123 -> 0 | FD4: =地市名称!D123 -> 0 | FE4: =地市名称!E123 -> 0 | FF4: =地市名称!A124 -> 0 | FG4: =地市名称!D124 -> 0 | FH4: =地市名称!D124 -> 0 | FI4: =地市名称!A125 -> 0 | FJ4: =地市名称!D125 -> 0 | FK4: =地市名称!D125 -> 0 | FL4: =地市名称!A126 -> 0 | FM4: =地市名称!D126 -> 0 | FN4: =地市名称!E126 -> 0 | FO4: =地市名称!A127 -> 0 | FP4: =地市名称!D127 -> 0 | FQ4: =地市名称!E127 -> 0 | FR4: =地市名称!A128 -> 0 | FS4: =地市名称!D128 -> 0 | FT4: =地市名称!E128 -> 0 | FU4: =地市名称!A129 -> 0 | FV4: =地市名称!D129 -> 0 | FW4: =地市名称!E129 -> 0 | FX4: =地市名称!C136 -> 987 | FY4: =地市名称!C137 -> 151 | FZ4: =地市名称!C138 -> 266 | GA4: =地市名称!C139 -> 625 | GB4: =地市名称!C140 -> 637 | GC4: =地市名称!C141 -> 745 | GD4: =地市名称!C142 -> 1673 | GE4: =地市名称!C143 -> 41 | GF4: =地市名称!C152 -> -- | GG4: =地市名称!E152 -> 2978 | GH4: =地市名称!C153 -> -- | GI4: =地市名称!E153 -> 1996 | GJ4: =地市名称!C154 -> -- | GK4: =地市名称!C161 -> 1404 | GL4: =地市名称!E161 -> 1787 | GM4: =地市名称!C162 -> 1224 | GN4: =地市名称!E162 -> 1495 | GO4: =地市名称!C163 -> 731 | GP4: =地市名称!E163 -> 962 | GQ4: =地市名称!C164 -> 461 | GR4: =地市名称!E164 -> 730 | GS4: =地市名称!C165 -> 737 | GT4: =地市名称!C172 -> 964 | GU4: =地市名称!E172 -> 1336 | GV4: =地市名称!C173 -> 1494 | GW4: =地市名称!E173 -> 1690 | GX4: =地市名称!E174 -> 983 | GY4: =地市名称!E174 -> 983 | GZ4: =地市名称!C175 -> 1293 | HA4: =地市名称!E175 -> 1630 | HB4: =地市名称!C176 -> 302 | HC4: =地市名称!E176 -> 313 | HD4: =地市名称!C177 -> 22 | HE4: =地市名称!E177 -> 5 | HF4: =地市名称!C178 -> 482 | HG4: =地市名称!C185 -> 318 | HH4: =地市名称!E185 -> 313 | HI4: =地市名称!C186 -> 181 | HJ4: =地市名称!E186 -> 145 | HK4: =地市名称!C187 -> 4 | HL4: =地市名称!E187 -> 3 | HM4: =地市名称!C188 -> 2 | HN4: =地市名称!E188 -> 1 | HO4: =地市名称!C189 -> 3 | HP4: =地市名称!E189 -> 2 | HQ4: =地市名称!C190 -> 321 | HR4: =地市名称!E190 -> 316 | HS4: =地市名称!C191 -> 8 | HT4: =地市名称!E191 -> 8 | HU4: =地市名称!C192 -> 2 | HV4: =地市名称!E192 -> 1 | HW4: =地市名称!E193 -> 4185 | HX4: =地市名称!C194 -> 3718
